bitfinex-derivatives/quotes_BTCF0:USTF0_20230701
["timestamp","ask_amount","ask_price","bid_price","bid_amount"]
[1688252523846,0.54979394,30623.0,30622.0,1.13073607]
[1688252525246,0.05778872,30623.0,30622.0,1.13073607]
[1688252526750,0.05756832,30623.0,30622.0,1.13073607]
[1688252542355,0.06516646,30629.0,30623.0,0.0065]
[1688252542656,0.3256,30630.0,30628.0,0.73029]
[1688252542853,0.47843554,30632.0,30630.0,0.019588]
[1688252543064,0.42600263,30632.0,30631.0,0.371988]
[1688252543251,0.42600263,30632.0,30631.0,0.40906714]
[1688252543453,0.91482843,30632.0,30631.0,0.39083745]
[1688252544260,0.94046499,30632.0,30631.0,0.39083745]
[1688252545357,0.57966499,30632.0,30631.0,0.39083745]
[1688252549163,0.57966499,30632.0,30631.0,0.371988]
[1688252550066,0.60261028,30632.0,30631.0,0.371988]
[1688252550863,0.60261028,30632.0,30631.0,0.39083745]
[1688252551461,0.60261028,30632.0,30631.0,0.75163745]
[1688252553367,0.60261028,30632.0,30631.0,0.76986714]
[1688252555962,0.60261028,30632.0,30631.0,0.75163745]
[1688252556369,0.60261028,30632.0,30631.0,0.76986714]
[1688252558172,0.60261028,30632.0,30631.0,0.75163745]
[1688252558757,0.60261028,30632.0,30631.0,0.76986714]
[1688252559670,0.60261028,30632.0,30631.0,0.732788]
[1688252561966,0.60261028,30632.0,30631.0,0.75163745]
[1688252562685,0.60261028,30632.0,30631.0,0.732788]
[1688252562870,0.97299728,30632.0,30631.0,0.33613802]
[1688252563873,0.62219728,30632.0,30631.0,0.019588]
[1688252564069,0.97529728,30632.0,30631.0,0.019588]
[1688252564880,0.97529728,30632.0,30631.0,0.019528]
[1688252565277,1.09293282,30632.0,30631.0,0.019528]
[1688252567380,1.45373282,30632.0,30631.0,0.019528]
[1688252569082,1.09293282,30632.0,30631.0,0.019528]
[1688252569277,1.45373282,30632.0,30631.0,0.019528]
[1688252577581,1.45373282,30632.0,30631.0,0.01939307]
[1688252580778,1.43414582,30632.0,30631.0,0.00962066]
[1688252580987,1.43414582,30632.0,30631.0,0.019588]
[1688252581279,1.43414582,30632.0,30630.0,0.40207]
[1688252581487,0.3515,30631.0,30630.0,0.40207]
[1688252581786,0.86439815,30631.0,30630.0,0.40207]
[1688252583887,0.51289815,30631.0,30630.0,0.40207]
[1688252592394,0.51289815,30631.0,30630.0,0.76287]
[1688252592986,0.51289815,30631.0,30630.0,0.40207]
[1688252593187,0.51289815,30631.0,30630.0,0.76287]
[1688252593994,0.51289815,30631.0,30630.0,0.75997]
[1688252595296,0.51289815,30631.0,30630.0,0.77881945]
[1688252596192,0.51289815,30631.0,30630.0,0.79704914]
[1688252597700,0.51289815,30631.0,30630.0,0.77881945]
[1688252598106,0.51289815,30631.0,30630.0,0.79704914]
[1688252598293,0.51289815,30631.0,30630.0,0.77881945]
[1688252600403,0.51289815,30631.0,30630.0,0.75997]
[1688252601703,0.51289815,30631.0,30630.0,0.77819969]
[1688252601898,0.51289815,30631.0,30630.0,0.41739969]
[1688252602100,0.51289815,30631.0,30630.0,0.77819969]
[1688252602301,0.51289815,30631.0,30630.0,0.75997]
[1688252606301,0.51289815,30631.0,30630.0,0.77819969]
[1688252606802,0.51289815,30631.0,30630.0,0.75997]
[1688252608211,0.51289815,30631.0,30630.0,0.77863315]
[1688252609212,0.51289815,30631.0,30630.0,0.79686284]
[1688252609416,0.51289815,30631.0,30630.0,0.77863315]
[1688252609907,0.51289815,30631.0,30630.0,0.41783315]
[1688252610116,0.51289815,30631.0,30630.0,0.7597837]
[1688252611512,0.51289815,30631.0,30630.0,0.77801339]
[1688252611713,0.51289815,30631.0,30630.0,0.7597837]
[1688252612715,0.51289815,30631.0,30630.0,0.3989837]
[1688252613017,0.51289815,30631.0,30630.0,0.7597837]
[1688252613203,0.56729366,30631.0,30630.0,0.37370654]
[1688252613404,0.56729366,30631.0,30630.0,0.04897]
[1688252613604,0.58688166,30631.0,30630.0,0.04897]
[1688252613816,0.93998166,30631.0,30630.0,0.03227356]
[1688252614004,0.93177784,30631.0,30630.0,0.03227356]
[1688252616323,0.87738233,30631.0,30630.0,0.03227356]
[1688252620021,1.23818233,30631.0,30630.0,0.03227356]
[1688252623112,0.87738233,30631.0,30630.0,0.03227356]
[1688252623919,0.87738233,30631.0,30630.0,0.38467356]
[1688252624917,0.87721686,30631.0,30630.0,0.38467356]
[1688252626827,0.87721686,30631.0,30630.0,0.38461356]
[1688252633326,0.87721686,30631.0,30630.0,0.40346301]
[1688252633827,0.87721686,30631.0,30630.0,0.05106301]
[1688252634827,0.87721686,30631.0,30630.0,0.03221356]
[1688252641821,0.87721686,30631.0,30630.0,0.03204336]
[1688252654836,0.87721686,30631.0,30630.0,0.03192577]
[1688252655641,0.87721686,30631.0,30630.0,0.00525094]
[1688252669344,0.87721686,30631.0,30630.0,0.00514184]
[1688252681948,0.87721686,30631.0,30630.0,0.00502404]
[1688252683760,1.23801686,30631.0,30630.0,0.00502404]
[1688252688964,0.87721686,30631.0,30630.0,0.00496404]
[1688252689264,1.23801686,30631.0,30630.0,0.00496404]
[1688252689759,1.23785233,30631.0,30630.0,0.00496404]
[1688252692071,0.87705233,30631.0,30630.0,0.00496404]
[1688252692273,1.23785233,30631.0,30630.0,0.00496404]
[1688252698883,0.87705233,30631.0,30630.0,0.00496404]
[1688252702485,0.87705233,30631.0,30629.0,0.019588]
[1688252702687,0.3531,30630.0,30629.0,0.019588]
[1688252702889,0.36697242,30630.0,30629.0,0.019588]
[1688252703078,0.85750334,30630.0,30629.0,0.019588]
[1688252710296,0.87709134,30630.0,30629.0,0.019588]
[1688252710592,0.85750334,30630.0,30629.0,0.019588]
[1688252711498,0.87709134,30630.0,30629.0,0.019588]
[1688252711792,0.85750334,30630.0,30629.0,0.019588]
[1688252711998,0.87709134,30630.0,30629.0,0.019588]
[1688252712497,0.85750334,30630.0,30629.0,0.019588]
[1688252714999,0.87709134,30630.0,30629.0,0.019588]
[1688252715400,0.87709134,30630.0,30628.0,0.23126293]
[1688252715601,0.3515,30629.0,30628.0,0.23126293]
[1688252716101,0.36538576,30629.0,30628.0,0.23126293]
[1688252731219,0.36538576,30629.0,30628.0,0.2311116]
[1688252731514,0.43205531,30629.0,30628.0,0.2311116]
[1688252732717,0.36538576,30629.0,30628.0,0.2311116]
[1688252751016,0.36538576,30629.0,30628.0,0.2310516]
[1688252760432,0.43091812,30629.0,30628.0,0.2310516]
[1688252765133,0.43091812,30629.0,30628.0,0.21784074]
[1688252813071,0.43091812,30629.0,30628.0,0.21778074]
[1688252822696,0.43091812,30629.0,30623.0,0.0065]
[1688252822697,0.3531,30626.0,30621.0,0.3531]
[1688252822893,0.42076968,30625.0,30624.0,0.30880004]
[1688252823090,0.35867417,30625.0,30624.0,0.30880004]
[1688252823487,0.35867417,30625.0,30624.0,0.28235504]
[1688252823690,0.35867417,30625.0,30624.0,0.30058473]
[1688252823891,0.03631693,30625.0,30624.0,0.65258473]
[1688252824289,0.15889591,30630.0,30625.0,0.05]
[1688252824595,0.36159649,30629.0,30626.0,0.019591]
[1688252824794,0.36159649,30629.0,30627.0,0.3313]
[1688252824987,0.87362173,30629.0,30628.0,0.01959]
[1688252825187,1.22672173,30629.0,30628.0,0.01959]
[1688252826182,0.93581463,30629.0,30628.0,0.01959]
[1688252827889,1.29661463,30629.0,30628.0,0.01959]
[1688252828889,1.41425017,30629.0,30628.0,0.01959]
[1688252834700,1.67537851,30629.0,30628.0,0.01959]
[1688252834900,1.05345017,30629.0,30628.0,0.01959]
[1688252835102,1.41425017,30629.0,30628.0,0.01959]
[1688252836604,1.41425017,30629.0,30628.0,0.01946943]
[1688252837507,1.6753556,30629.0,30628.0,0.01946943]
[1688252837699,1.41425017,30629.0,30628.0,0.01946943]
[1688252838304,1.67535594,30629.0,30628.0,0.01946943]
[1688252838607,1.74188777,30629.0,30628.0,0.01946943]
[1688252839399,1.77482138,30629.0,30628.0,0.01946943]
[1688252841817,1.77482138,30629.0,30627.0,0.34977874]
[1688252842022,0.41725711,30628.0,30627.0,0.3248]
[1688252842223,0.43999412,30628.0,30627.0,0.3248]
[1688252845622,0.80079412,30628.0,30627.0,0.3248]
[1688252846821,1.06183185,30628.0,30627.0,0.3248]
[1688252847021,1.06183185,30628.0,30627.0,0.34439]
[1688252847732,1.06183185,30628.0,30627.0,0.31118673]
[1688252848032,1.06183185,30628.0,30627.0,0.28818673]
[1688252849529,0.70103185,30628.0,30627.0,0.28818673]
[1688252849727,1.06183185,30628.0,30627.0,0.28818673]
[1688252850828,0.70103185,30628.0,30627.0,0.28818673]
[1688252851027,1.06183185,30628.0,30627.0,0.28818673]
[1688252851931,1.06183185,30628.0,30627.0,0.26253874]
[1688252853025,1.06183185,30628.0,30627.0,0.23626709]
[1688252856531,1.08794554,30628.0,30627.0,0.23626709]
[1688252860228,1.1352385,30628.0,30627.0,0.23626709]
[1688252861632,0.87420077,30628.0,30627.0,0.23626709]
[1688252862128,1.16824015,30628.0,30627.0,0.23626709]
[1688252863728,1.28587569,30628.0,30627.0,0.23626709]
[1688252863935,0.92507569,30628.0,30627.0,0.23626709]
[1688252864136,1.28587569,30628.0,30627.0,0.23626709]
[1688252864727,0.92507569,30628.0,30627.0,0.23626709]
[1688252865030,1.16824015,30628.0,30627.0,0.23626709]
[1688252865238,0.80744015,30628.0,30627.0,0.23626709]
[1688252865440,1.16824015,30628.0,30627.0,0.23626709]
[1688252866029,1.28587569,30628.0,30627.0,0.23626709]
[1688252867039,1.28587569,30628.0,30627.0,0.23620491]
[1688252867839,1.28587569,30628.0,30627.0,0.21661491]
[1688252868041,1.42939222,30628.0,30622.0,0.34106868]
[1688252868237,0.733493,30623.0,30622.0,0.039406]
[1688252868435,0.78386189,30623.0,30622.0,0.039406]
[1688252869435,0.70532175,30623.0,30622.0,0.039406]
[1688252869836,0.78386189,30623.0,30622.0,0.039406]
[1688252870143,1.01236291,30623.0,30622.0,0.039406]
[1688252870732,1.12999845,30623.0,30622.0,0.039406]
[1688252871138,0.90149743,30623.0,30622.0,0.039406]
[1688252871747,1.12999257,30623.0,30622.0,0.039406]
[1688252872141,1.12999257,30623.0,30622.0,0.368606]
[1688252873150,1.01235703,30623.0,30622.0,0.368606]
[1688252875749,1.01235703,30623.0,30622.0,0.394512]
[1688252877041,1.03872385,30623.0,30622.0,0.394512]
[1688252878652,1.03872385,30623.0,30622.0,0.37785233]
[1688252880048,1.10488939,30623.0,30622.0,0.37785233]
[1688252881252,0.74408939,30623.0,30622.0,0.37785233]
[1688252881653,0.74408939,30623.0,30622.0,0.371568]
[1688252882448,0.74408939,30623.0,30622.0,0.36861436]
[1688252891651,0.67792385,30623.0,30622.0,0.36861436]
[1688252891960,0.44942871,30623.0,30622.0,0.36861436]
[1688252893659,0.42983571,30623.0,30622.0,0.36861436]
[1688252893860,0.42983571,30623.0,30622.0,0.38746381]
[1688252894372,0.42983571,30623.0,30622.0,0.4056935]
[1688252894559,0.57832867,30623.0,30622.0,0.4056935]
[1688252895966,0.57832867,30623.0,30622.0,0.7664935]
[1688252897677,0.57832867,30623.0,30622.0,0.4056935]
[1688252897861,0.57832867,30623.0,30622.0,0.7664935]
[1688252899373,0.42983556,30623.0,30622.0,0.7664935]
[1688252904165,0.42983556,30623.0,30622.0,0.74764405]
[1688252904367,0.6583307,30623.0,30622.0,0.74764405]
[1688252905468,0.6583307,30623.0,30622.0,0.72941436]
[1688252905670,0.6779237,30623.0,30622.0,0.72941436]
[1688252906676,0.6779237,30623.0,30622.0,0.36861436]
[1688252906977,0.44942856,30623.0,30622.0,0.36861436]
[1688252907782,0.6779237,30623.0,30622.0,0.36861436]
[1688252911379,0.6779237,30623.0,30622.0,0.38684405]
[1688252912285,0.6779237,30623.0,30622.0,0.36861436]
[1688252912487,0.6779237,30623.0,30622.0,0.38684405]
[1688252913574,0.6779237,30623.0,30622.0,0.36861436]
[1688252914379,0.44942856,30623.0,30622.0,0.36861436]
[1688252916181,0.71063166,30623.0,30622.0,0.36861436]
[1688252916482,0.71063166,30623.0,30622.0,0.065312]
[1688252916483,0.77819863,30623.0,30622.0,0.065312]
[1688252916877,0.77804964,30623.0,30622.0,0.065312]
[1688252921888,0.71048267,30623.0,30622.0,0.065312]
[1688252922090,0.44927957,30623.0,30622.0,0.065312]
[1688252923490,1.13115148,30623.0,30621.0,0.0071708]
[1688252923690,0.37606472,30622.0,30621.0,0.019594]
[1688252923885,0.74875772,30622.0,30621.0,0.019594]
[1688252925999,0.68118891,30622.0,30621.0,0.019594]
[1688252927186,0.41998581,30622.0,30621.0,0.019594]
[1688252931805,0.68118891,30622.0,30621.0,0.019594]
[1688252932106,0.41998581,30622.0,30621.0,0.019594]
[1688252934007,0.78078581,30622.0,30621.0,0.019594]
[1688252936599,0.41998581,30622.0,30621.0,0.019594]
[1688252936799,0.78078581,30622.0,30621.0,0.019594]
[1688252937109,1.10956089,30622.0,30621.0,0.019594]
[1688252937591,0.74876089,30622.0,30621.0,0.019594]
[1688252937798,1.10956089,30622.0,30621.0,0.019594]
[1688252938299,1.10956089,30622.0,30621.0,0.01941504]
[1688252940305,1.10956089,30622.0,30619.0,0.065318]
[1688252940502,0.58141165,30620.0,30619.0,0.065318]
[1688252940708,0.64829946,30620.0,30619.0,0.065318]
[1688252944499,0.41998781,30620.0,30619.0,0.065318]
[1688252945109,0.41998781,30620.0,30619.0,0.019595]
[1688252945296,0.64829946,30620.0,30619.0,0.019595]
[1688252945502,0.6482967,30620.0,30619.0,0.019595]
[1688252946602,0.76593224,30620.0,30619.0,0.019595]
[1688252946807,0.53762335,30620.0,30619.0,0.019595]
[1688252947312,0.76591908,30620.0,30619.0,0.019595]
[1688252948910,0.64828354,30620.0,30619.0,0.019595]
[1688252949615,1.00908354,30620.0,30619.0,0.019595]
[1688252951211,1.12671908,30620.0,30619.0,0.019595]
[1688252952110,0.89842335,30620.0,30619.0,0.019595]
[1688252952513,0.48624833,30620.0,30619.0,0.019595]
[1688252952712,0.84704833,30620.0,30619.0,0.019595]
[1688252952916,0.84704833,30620.0,30619.0,0.01947918]
[1688252959118,0.48624833,30620.0,30619.0,0.01947918]
[1688252959317,0.84704833,30620.0,30619.0,0.01947918]
[1688252959715,0.48624833,30620.0,30619.0,0.01947918]
[1688252959917,0.84704833,30620.0,30619.0,0.01947918]
[1688252966115,1.10825143,30620.0,30619.0,0.01947918]
[1688252967619,1.10825143,30620.0,30619.0,0.01924446]
[1688252968024,1.17582625,30620.0,30619.0,0.01924446]
[1688252969528,0.81502625,30620.0,30619.0,0.01924446]
[1688252970130,1.17582625,30620.0,30619.0,0.01924446]
[1688252973520,0.81502625,30620.0,30619.0,0.01924446]
[1688252973723,1.17582625,30620.0,30619.0,0.01924446]
[1688252974525,0.91462315,30620.0,30619.0,0.01924446]
[1688252975629,1.03225869,30620.0,30619.0,0.01924446]
[1688252976837,0.67145869,30620.0,30619.0,0.01924446]
[1688252977228,1.03225869,30620.0,30619.0,0.01924446]
[1688252981937,1.29347929,30620.0,30619.0,0.01924446]
[1688252982343,1.29347929,30620.0,30619.0,0.01904485]
[1688252984045,1.03225869,30620.0,30619.0,0.01904485]
[1688252985131,0.67145869,30620.0,30619.0,0.01904485]
[1688252985337,1.03225869,30620.0,30619.0,0.01904485]
[1688252985941,0.67145869,30620.0,30619.0,0.01904485]
[1688252986141,0.91462315,30620.0,30619.0,0.01904485]
[1688252987242,1.03225869,30620.0,30619.0,0.01904485]
[1688252989452,1.32611218,30620.0,30619.0,0.01904485]
[1688252992062,1.03225869,30620.0,30619.0,0.01904485]
[1688252993066,0.67145869,30620.0,30619.0,0.01904485]
[1688252994260,0.55382315,30620.0,30619.0,0.01904485]
[1688252997057,0.81513039,30620.0,30619.0,0.01904485]
[1688253002570,0.55382315,30620.0,30619.0,0.01884763]
[1688253004572,0.84767664,30620.0,30619.0,0.01884763]
[1688253005975,0.85204285,30620.0,30619.0,0.01884763]
[1688253012272,0.55818936,30620.0,30619.0,0.01884763]
[1688253015983,0.55818936,30620.0,30619.0,0.01865031]
[1688253027080,0.85204285,30620.0,30619.0,0.01865031]
[1688253027482,0.85204285,30620.0,30619.0,0.03688]
[1688253027782,0.85204285,30620.0,30619.0,0.01865031]
[1688253028790,0.83244785,30620.0,30619.0,0.01865031]
[1688253028982,0.53859436,30620.0,30619.0,0.01865031]
[1688253029296,0.53859436,30620.0,30619.0,0.03688]
[1688253029897,0.53859436,30620.0,30619.0,0.01865031]
[1688253030190,0.53859436,30620.0,30619.0,0.03688]
[1688253030691,0.53859436,30620.0,30619.0,0.01865031]
[1688253031191,0.53859436,30620.0,30619.0,0.01846596]
[1688253034488,0.79985626,30620.0,30619.0,0.01846596]
[1688253034988,0.79985628,30620.0,30619.0,0.01846596]
[1688253036790,0.53859436,30620.0,30619.0,0.01846596]
[1688253036992,0.79985635,30620.0,30619.0,0.01846596]
[1688253037186,0.53859436,30620.0,30619.0,0.01846596]
[1688253038394,0.55818936,30620.0,30619.0,0.01846596]
[1688253040991,0.55382315,30620.0,30619.0,0.01846596]
[1688253042297,0.84767664,30620.0,30619.0,0.01846596]
[1688253042698,0.84767664,30620.0,30619.0,0.03669565]
[1688253043090,0.84767664,30620.0,30619.0,0.01846596]
[1688253044594,0.84767664,30620.0,30619.0,0.0183846]
[1688253049603,0.55374954,30620.0,30619.0,0.0183846]
[1688253063828,0.55374954,30620.0,30619.0,0.01829749]
[1688253064624,0.84760303,30620.0,30619.0,0.01829749]
[1688253065528,0.84760303,30620.0,30619.0,0.03652718]
[1688253065729,0.84760303,30620.0,30619.0,0.01829749]
[1688253072025,0.55374954,30620.0,30619.0,0.01829749]
[1688253077035,0.84760303,30620.0,30619.0,0.01829749]
[1688253078129,0.84760303,30620.0,30619.0,0.01815836]
[1688253084342,0.55374954,30620.0,30619.0,0.01815836]
[1688253086650,0.99102726,30620.0,30615.0,0.019597]
[1688253086948,0.7111,30616.0,30613.0,0.05]
[1688253087142,0.3531,30614.0,30613.0,0.098396]
[1688253087345,0.74882132,30614.0,30613.0,0.098396]
[1688253087546,0.42000842,30614.0,30613.0,0.098396]
[1688253087948,0.42000842,30614.0,30610.0,0.38088898]
[1688253087949,0.7488337,30614.0,30610.0,0.02008898]
[1688253088148,0.6955,30611.0,30610.0,0.02008898]
[1688253088349,0.76241042,30611.0,30610.0,0.02008898]
[1688253088541,0.76241042,30611.0,30609.0,0.36339398]
[1688253088739,0.680601,30611.0,30610.0,0.019601]
[1688253088948,1.08101415,30611.0,30610.0,0.019601]
[1688253089354,0.99419675,30611.0,30609.0,0.3243]
[1688253089557,0.99419675,30611.0,30609.0,0.019602]
[1688253089558,0.39851315,30610.0,30609.0,0.019602]
[1688253089740,0.88872009,30610.0,30608.0,0.04841]
[1688253089945,0.82500794,30610.0,30609.0,0.019602]
[1688253090157,1.22542365,30610.0,30609.0,0.04354539]
[1688253090359,1.22542365,30610.0,30609.0,0.02134369]
[1688253090652,1.22542365,30610.0,30609.0,0.019602]
[1688253090851,1.34305919,30610.0,30609.0,0.019602]
[1688253091643,1.49116673,30610.0,30609.0,0.019602]
[1688253093046,1.85196673,30610.0,30609.0,0.019602]
[1688253093845,2.20506673,30610.0,30609.0,0.019602]
[1688253094057,2.20506673,30610.0,30607.0,0.36438803]
[1688253094058,2.20506673,30610.0,30607.0,0.32479003]
[1688253094254,0.3531,30607.0,30606.0,0.065346]
[1688253094459,1.081003,30607.0,30606.0,0.061926]
[1688253094652,1.081003,30607.0,30606.0,0.031926]
[1688253095359,1.081003,30607.0,30606.0,0.05326497]
[1688253095559,1.081003,30607.0,30606.0,0.05333099]
[1688253096346,1.081003,30607.0,30606.0,0.02333099]
[1688253096547,1.081003,30607.0,30606.0,0.08014997]
[1688253096748,1.081003,30607.0,30606.0,0.058811]
[1688253096955,1.081003,30607.0,30606.0,0.08014867]
[1688253098558,1.081003,30607.0,30606.0,0.08021469]
[1688253099457,1.24357255,30607.0,30606.0,0.08021469]
[1688253101760,1.081003,30607.0,30606.0,0.08021469]
[1688253102868,0.720203,30607.0,30606.0,0.08021469]
[1688253103064,1.081003,30607.0,30606.0,0.08021469]
[1688253103464,1.21099787,30607.0,30606.0,0.08021469]
[1688253103871,1.21329787,30607.0,30606.0,0.08021469]
[1688253104570,1.27944898,30607.0,30606.0,0.08021469]
[1688253104773,0.91864898,30607.0,30606.0,0.08021469]
[1688253105067,1.27944898,30607.0,30606.0,0.08021469]
[1688253105458,1.30589895,30607.0,30606.0,0.08021469]
[1688253105762,1.79731937,30607.0,30606.0,0.05021469]
[1688253106171,1.91495491,30607.0,30606.0,0.05021469]
[1688253106966,1.91495491,30607.0,30606.0,0.02140369]
[1688253107362,1.91495491,30607.0,30606.0,0.02132796]
[1688253107776,1.91495491,30607.0,30606.0,0.01599329]
[1688253113670,1.55415491,30607.0,30606.0,0.01599329]
[1688253113873,1.91495491,30607.0,30606.0,0.01599329]
[1688253116569,2.23045491,30607.0,30606.0,0.01599329]
[1688253117571,2.10046004,30607.0,30606.0,0.01599329]
[1688253118275,2.10046004,30607.0,30605.0,0.019604]
[1688253118471,0.48070366,30606.0,30605.0,0.019604]
[1688253118672,0.50030766,30606.0,30605.0,0.019604]
[1688253118979,0.6179432,30606.0,30605.0,0.019604]
[1688253119982,0.9787432,30606.0,30605.0,0.019604]
[1688253121772,0.6179432,30606.0,30605.0,0.019604]
[1688253121972,0.9787432,30606.0,30605.0,0.019604]
[1688253122585,0.97878917,30606.0,30605.0,0.019604]
[1688253123467,0.84883954,30606.0,30605.0,0.019604]
[1688253124581,0.97882663,30606.0,30605.0,0.019604]
[1688253125287,0.97882635,30606.0,30605.0,0.019604]
[1688253125582,0.84883954,30606.0,30605.0,0.019604]
[1688253127174,0.48803954,30606.0,30605.0,0.019604]
[1688253127385,0.84883954,30606.0,30605.0,0.019604]
[1688253127587,1.01140909,30606.0,30603.0,0.38801009]
[1688253127788,0.66060909,30606.0,30603.0,0.38801009]
[1688253128080,0.371105,30604.0,30603.0,0.38801009]
[1688253128380,0.53367455,30604.0,30603.0,0.30899609]
[1688253129486,0.371105,30604.0,30603.0,0.30899609]
[1688253129787,0.371105,30604.0,30603.0,0.32860209]
[1688253131785,1.17483213,30604.0,30603.0,0.32860209]
[1688253132181,1.17483213,30604.0,30603.0,0.29860209]
[1688253133480,1.37025538,30604.0,30603.0,0.31839044]
[1688253135575,1.17483213,30604.0,30603.0,0.31839044]
[1688253136192,1.22215655,30604.0,30603.0,0.28839044]
[1688253137985,1.58295655,30604.0,30603.0,0.28839044]
[1688253138690,1.70059209,30604.0,30603.0,0.26878444]
[1688253138890,1.76469385,30604.0,30603.0,0.03939435]
[1688253139090,1.76469385,30604.0,30603.0,0.00939435]
[1688253139291,1.76469385,30604.0,30603.0,0.02575961]
[1688253141493,1.99305477,30604.0,30603.0,0.02575961]
[1688253142095,1.63225477,30604.0,30603.0,0.02575961]
[1688253142287,1.87541923,30604.0,30603.0,0.02575961]
[1688253143591,1.99305477,30604.0,30603.0,0.02575961]
[1688253143788,1.76469385,30604.0,30603.0,0.02575961]
[1688253144189,1.99305477,30604.0,30603.0,0.02575961]
[1688253145690,1.76469385,30604.0,30603.0,0.02575961]
[1688253146591,1.99305477,30604.0,30603.0,0.02575961]
[1688253146989,1.76469385,30604.0,30603.0,0.02575961]
[1688253147496,1.99305477,30604.0,30603.0,0.02575961]
[1688253147898,1.76469385,30604.0,30603.0,0.02575961]
[1688253148789,1.99305477,30604.0,30603.0,0.02575961]
[1688253149997,1.99305477,30604.0,30602.0,0.367517]
[1688253150196,0.54636909,30603.0,30602.0,0.367517]
[1688253150390,0.68361063,30603.0,30602.0,0.337517]
[1688253150591,1.17175766,30603.0,30602.0,0.337517]
[1688253154598,1.02351312,30603.0,30602.0,0.337517]
[1688253156701,1.38431312,30603.0,30602.0,0.337517]
[1688253157199,1.02351312,30603.0,30602.0,0.337517]
[1688253157493,1.26667758,30603.0,30602.0,0.337517]
[1688253157707,1.26667758,30603.0,30602.0,0.34977404]
[1688253158502,1.38431312,30603.0,30602.0,0.34977404]
[1688253160112,1.26269097,30603.0,30602.0,0.34977404]
[1688253160403,0.95873005,30603.0,30602.0,0.38685318]
[1688253160697,0.94343005,30603.0,30602.0,0.38685318]
[1688253161000,0.80403748,30603.0,30602.0,0.34977404]
[1688253161300,0.82364348,30603.0,30602.0,0.34977404]
[1688253161500,0.87096612,30603.0,30602.0,0.34977404]
[1688253162199,1.01924746,30603.0,30602.0,0.34977404]
[1688253165508,0.82364348,30603.0,30602.0,0.34977404]
[1688253166309,0.82364348,30603.0,30602.0,0.38685318]
[1688253166611,1.01929174,30603.0,30602.0,0.38685318]
[1688253166808,0.99968574,30603.0,30602.0,0.38685318]
[1688253168309,0.99968574,30603.0,30602.0,0.34977404]
[1688253169713,0.85135936,30603.0,30602.0,0.38685318]
[1688253169897,0.85135936,30603.0,30602.0,0.36862349]
[1688253171113,0.85135936,30603.0,30602.0,0.72942349]
[1688253171706,0.85135936,30603.0,30602.0,0.71057404]
[1688253173705,1.07972028,30603.0,30602.0,0.68057404]
[1688253175104,1.07972028,30603.0,30602.0,0.71765318]
[1688253175317,1.07972028,30603.0,30602.0,0.69942349]
[1688253175615,1.07972028,30603.0,30602.0,0.71765318]
[1688253175906,1.07972028,30603.0,30602.0,0.69942349]
[1688253176416,1.07972028,30603.0,30602.0,0.68057404]
[1688253177114,0.85135936,30603.0,30602.0,0.68057404]
[1688253179915,0.85135936,30603.0,30602.0,0.69880373]
[1688253180216,0.85135936,30603.0,30602.0,0.68057404]
[1688253180919,0.87096536,30603.0,30602.0,0.68057404]
[1688253184715,1.09932628,30603.0,30602.0,0.68057404]
[1688253188222,1.09932628,30603.0,30602.0,0.42207404]
[1688253192016,1.09932628,30603.0,30602.0,0.06127404]
[1688253195128,1.09932628,30603.0,30602.0,0.03186404]
[1688253197621,1.09932628,30603.0,30602.0,0.034607]
[1688253197831,1.09932628,30603.0,30602.0,0.04761145]
[1688253198028,1.21696182,30603.0,30602.0,0.04761145]
[1688253202835,1.21696182,30603.0,30602.0,0.01761145]
[1688253203335,1.21696182,30603.0,30602.0,0.03721845]
[1688253207236,0.9886009,30603.0,30602.0,0.03721845]
[1688253208231,0.9886009,30603.0,30602.0,0.03261145]
[1688253214539,1.21688387,30603.0,30602.0,0.03261145]
[1688253222045,0.9886009,30603.0,30602.0,0.03261145]
[1688253229643,1.21692635,30603.0,30602.0,0.03261145]
[1688253233249,1.21692635,30603.0,30602.0,0.019607]
[1688253233450,1.21692635,30603.0,30602.0,0.0325385]
[1688253235256,0.9886009,30603.0,30602.0,0.0325385]
[1688253240143,0.9886009,30603.0,30602.0,0.019607]
[1688253240562,0.9886009,30603.0,30602.0,0.03253212]
[1688253242256,0.9886009,30603.0,30602.0,0.019607]
[1688253242460,0.9886009,30603.0,30602.0,0.03253024]
[1688253244557,1.05620951,30603.0,30602.0,0.03253024]
[1688253244754,1.31744759,30603.0,30602.0,0.03253024]
[1688253246758,1.19981205,30603.0,30602.0,0.019607]
[1688253246958,1.19981205,30603.0,30602.0,0.03251812]
[1688253247963,1.31744759,30603.0,30602.0,0.03251812]
[1688253248568,1.31744759,30603.0,30602.0,0.005807]
[1688253248867,1.31744759,30603.0,30602.0,0.03074064]
[1688253252058,1.24983898,30603.0,30602.0,0.03074064]
[1688253252259,0.9886009,30603.0,30602.0,0.03074064]
[1688253256267,0.9886009,30603.0,30602.0,0.019607]
[1688253256462,0.9886009,30603.0,30602.0,0.03073359]
[1688253259658,1.05620944,30603.0,30602.0,0.03073359]
[1688253259861,1.31744752,30603.0,30602.0,0.03073359]
[1688253260259,1.31744752,30603.0,30602.0,0.019607]
[1688253260667,1.31744752,30603.0,30602.0,0.03072993]
[1688253261059,1.31744752,30603.0,30602.0,0.00072993]
[1688253261255,1.31744752,30603.0,30602.0,0.02813099]
[1688253261455,1.05620944,30603.0,30602.0,0.02813099]
[1688253262065,1.31719892,30603.0,30602.0,0.02813099]
[1688253262964,1.31719892,30603.0,30602.0,0.02810663]
[1688253263755,1.05620944,30603.0,30602.0,0.02810663]
[1688253264161,1.3171832,30603.0,30602.0,0.02810663]
[1688253266570,1.05620944,30603.0,30602.0,0.02810663]
[1688253267176,1.31716914,30603.0,30602.0,0.02810663]
[1688253269964,1.1995336,30603.0,30602.0,0.02810663]
[1688253270983,1.31716914,30603.0,30602.0,0.02810663]
[1688253273482,1.31716914,30603.0,30602.0,0.02800004]
[1688253274885,1.05620944,30603.0,30602.0,0.02800004]
[1688253276085,1.67790265,30603.0,30602.0,0.02800004]
[1688253277084,1.31710265,30603.0,30602.0,0.02800004]
[1688253277280,1.41700944,30603.0,30602.0,0.02800004]
[1688253278487,1.67789735,30603.0,30602.0,0.02800004]
[1688253279182,1.41700944,30603.0,30602.0,0.02800004]
[1688253279576,1.05620944,30603.0,30602.0,0.02800004]
[1688253279777,1.41700944,30603.0,30602.0,0.02800004]
[1688253279973,1.05620944,30603.0,30602.0,0.02800004]
[1688253280182,1.41700944,30603.0,30602.0,0.02800004]
[1688253282278,1.67790764,30603.0,30602.0,0.02800004]
[1688253282788,1.31710764,30603.0,30602.0,0.02800004]
[1688253282987,1.2494991,30603.0,30602.0,0.02800004]
[1688253283194,0.9886009,30603.0,30602.0,0.02800004]
[1688253283491,1.2494991,30603.0,30602.0,0.02800004]
[1688253283890,1.13186356,30603.0,30602.0,0.02800004]
[1688253287792,1.13186356,30603.0,30602.0,0.04622973]